Workbook

Sheet ORÇAMENTO
B2: TODOS OS VALORES ESTÃO NA UNIDADE MONETÁRIA REAL
B3: ITEM | C3: SERVIÇO | D3: UN | E3: QUANTI. | F3: VALOR S/ BDI | G3: BDI | H3: VALOR C/ BDI | I3: VALOR TOTAL | J3: CÓDIGO | K3: FONTE
B4: INICIAL
B5: 1 | C5: SERVIÇOS INICIAIS | H5: ∑ | I5: =SUBTOTAL(9,I6:I8) -> 8408.38
B6: 1.1 | C6: Execução de Depósito em Canteiro de Obra em Chapa de Madeira Compensada | D6: M2 | E6: 6 | F6: 435.34 | G6: =BDI!$C$26 -> 0.2034 | H6: =TRUNC(((F6*G6)+F6),2) -> 523.88 | I6: =IF(ISERR(ROUND((E6*H6),2)),"",ROUND((E6*H6),2)) -> 3143.28 | J6: CRD001 | K6: COMPOSIÇÃO
B7: 1.2 | C7: Placa de Obra em Chapa de Aço Galvanizado | D7: M2 | E7: 2.88 | F7: 383.28 | G7: =BDI!$C$26 -> 0.2034 | H7: =TRUNC(((F7*G7)+F7),2) -> 461.23 | I7: 1328.34 | J7: 74209/1 | K7: SINAPI
B8: 1.3 | C8: Locação de Obra Convencional, através de Gabarito de Madeira | D8: M | E8: 66.32 | F8: 49.33 | G8: =BDI!$C$26 -> 0.2034 | H8: =TRUNC(((F8*G8)+F8),2) -> 59.36 | I8: 3936.76 | J8: 99059 | K8: SINAPI
B9: ESTRUTURA
B10: 2 | C10: INFRAESTRUTURA | H10: ∑ | I10: =SUBTOTAL(9,I11:I23) -> 38046.72
B11: 2.1 | C11: Escavações Manuais | D11: M3 | E11: 29.93 | F11: 65.59 | G11: =BDI!$C$26 -> 0.2034 | H11: =TRUNC(((F11*G11)+F11),2) -> 78.93 | I11: =IF(ISERR(ROUND((E11*H11),2)),"",ROUND((E11*H11),2)) -> 2362.37 | J11: 93358 | K11: SINAPI
B12: 2.2 | C12: Forma de Madeira para Concreto
B13: 2.2.1 | C13: Forma de Madeira para Concreto, (material e mão-de-obra para fabricação, montagem e desforma) - Sapatas e Pilares de Fundação | D13: M2 | E13: 42.4 | F13: 136.44 | G13: =BDI!$C$26 -> 0.2034 | H13: 164.19 | I13: 6961.66 | J13: 96535 | K13: SINAPI
B14: 2.2.2 | C14: Forma de Madeira para Concreto, (material e mão-de-obra para fabricação, montagem e desforma) - Vigas Baldrame | D14: M2 | E14: 117.45 | F14: 66.46 | G14: =BDI!$C$26 -> 0.2034 | H14: 79.97 | I14: 9392.48 | J14: 96536 | K14: SINAPI
B15: 2.3 | C15: Armaduras
B16: 2.3.1 | C16: Armadura CA-60 - 5.0mm (fornecimento, corte, dobra e colocação) | D16: KG | E16: 150.1 | F16: 12.88 | G16: =BDI!$C$26 -> 0.2034 | H16: 15.49 | I16: 2325.05 | J16: 96543 | K16: SINAPI
B17: 2.3.2 | C17: Armadura CA-50 - 6.3mm (fornecimento, corte, dobra e colocação) | D17: KG | E17: 2.4 | F17: 10.88 | G17: =BDI!$C$26 -> 0.2034 | H17: 13.09 | I17: 31.42 | J17: 96544 | K17: SINAPI
B18: 2.3.3 | C18: Armadura CA-50 - 8.0mm (fornecimento, corte, dobra e colocação) | D18: KG | E18: 164.8 | F18: 10.11 | G18: =BDI!$C$26 -> 0.2034 | H18: 12.16 | I18: 2003.97 | J18: 96545 | K18: SINAPI
B19: 2.3.4 | C19: Armadura CA-50 - 10.0mm (fornecimento, corte, dobra e colocação) | D19: KG | E19: 489.3 | F19: 8.2 | G19: =BDI!$C$26 -> 0.2034 | H19: 9.86 | I19: 4824.5 | J19: 96546 | K19: SINAPI
B20: 2.4 | C20: Concreto Usinado
B21: 2.4.1 | C21: Concreto Usinado (fornecimento, lançamento, adensamento e bombeado) FCK=25MPA - Sapatas e Pilares de Fundação | D21: M3 | E21: 7.72 | F21: 404.03 | G21: =BDI!$C$26 -> 0.2034 | H21: 486.2 | I21: 3753.46 | J21: 96558 | K21: SINAPI
B22: 2.4.2 | C22: Concreto Usinado (fornecimento, lançamento, adensamento e bombeado) FCK=25MPA - Vigas Baldrame | D22: M3 | E22: 7 | F22: 397.66 | G22: =BDI!$C$26 -> 0.2034 | H22: =TRUNC(((F22*G22)+F22),2) -> 478.54 | I22: 3349.78 | J22: 96557 | K22: SINAPI
B23: 2.5 | C23: Impermeabilização com Manta Asfáltica e=3mm, incluindo Emulsão Asfáltica | D23: M2 | E23: 38.58 | F23: 65.53 | G23: =BDI!$C$26 -> 0.2034 | H23: =TRUNC(((F23*G23)+F23),2) -> 78.85 | I23: 3042.03 | J23: 98546 | K23: SINAPI
B24: 3 | C24: SUPRAESTRUTURA | H24: ∑ | I24: =SUBTOTAL(9,I25:I38) -> 53858.83
B25: 3.1 | C25: Forma de Madeira para Concreto
B26: 3.1.1 | C26: Forma de Madeira Serrada para Concreto, (material e mão-de-obra para fabricação, montagem e desforma) - Vigas | D26: M2 | E26: 148.87 | F26: 111.41 | G26: =BDI!$C$26 -> 0.2034 | H26: =TRUNC(((F26*G26)+F26),2) -> 134.07 | I26: =IF(ISERR(ROUND((E26*H26),2)),"",ROUND((E26*H26),2)) -> 19959 | J26: 92448 | K26: SINAPI
B27: 3.1.2 | C27: Forma de Madeira Serrada para Concreto, (material e mão-de-obra para fabricação, montagem e desforma) - Pilares | D27: M2 | E27: 4.76 | F27: 106.51 | G27: =BDI!$C$26 -> 0.2034 | H27: =TRUNC(((F27*G27)+F27),2) -> 128.17 | I27: =IF(ISERR(ROUND((E27*H27),2)),"",ROUND((E27*H27),2)) -> 610.09 | J27: 92412 | K27: SINAPI
B28: 3.2 | C28: Armaduras
B29: 3.2.1 | C29: Armadura CA-60 - 5.0MM (fornecimento, corte, dobra e colocação) | D29: KG | E29: 284.2 | F29: 13.02 | G29: =BDI!$C$26 -> 0.2034 | H29: 15.66 | I29: 4450.57 | J29: 92775 | K29: SINAPI
B30: 3.2.2 | C30: Armadura CA-50 - 6.3MM (fornecimento, corte, dobra e colocação) | D30: KG | E30: 98.7 | F30: 10.97 | G30: =BDI!$C$26 -> 0.2034 | H30: 13.2 | I30: 1302.84 | J30: 92776 | K30: SINAPI
B31: 3.2.3 | C31: Armadura CA-50 - 8.0MM (fornecimento, corte, dobra e colocação) | D31: KG | E31: 147.4 | F31: 10.11 | G31: =BDI!$C$26 -> 0.2034 | H31: 12.16 | I31: 1792.38 | J31: 92777 | K31: SINAPI
B32: 3.2.4 | C32: Armadura CA-50 - 10.0MM (fornecimento, corte, dobra e colocação) | D32: KG | E32: 463.7 | F32: 8.14 | G32: =BDI!$C$26 -> 0.2034 | H32: 9.79 | I32: 4539.62 | J32: 92778 | K32: SINAPI
B33: 3.2.5 | C33: Armadura CA-50 - 12.5MM (fornecimento, corte, dobra e colocação) | D33: KG | E33: 120.6 | F33: 7.04 | G33: =BDI!$C$26 -> 0.2034 | H33: 8.47 | I33: 1021.48 | J33: 92779 | K33: SINAPI
B34: 3.3 | C34: Concreto Usinado
B35: 3.3.1 | C35: Concreto Usinado (fornecimento, lançamento, adensamento e bombeado) FCK=25MPA - Pilares | D35: M3 | E35: 4.76 | F35: 382.79 | G35: =BDI!$C$26 -> 0.2034 | H35: 460.64 | I35: 2192.65 | J35: 92720 | K35: SINAPI
B36: 3.3.2 | C36: Concreto Usinado (fornecimento, lançamento, adensamento e bombeado) FCK=25MPA - Vigas | D36: M3 | E36: 9.21 | F36: 380.64 | G36: =BDI!$C$26 -> 0.2034 | H36: 458.06 | I36: 4218.73 | J36: CED001 | K36: COMPOSIÇÃO
B37: 3.4 | C37: Lajes
B38: 3.4.1 | C38: Laje Pré-Moldada Treliçada, SC 250Kg/m2, com Lajota Cerâmica e Capeamento de 5cm, FCK 25 MPa (com escoramento, ferragem negativa e malho pop) | D38: M2 | E38: 148.16 | F38: 77.24 | G38: =BDI!$C$26 -> 0.2034 | H38: =TRUNC(((F38*G38)+F38),2) -> 92.95 | I38: =IF(ISERR(ROUND((E38*H38),2)),"",ROUND((E38*H38),2)) -> 13771.47 | J38: 74202/2 | K38: SINAPI
B39: 4 | C39: FECHAMENTOS | H39: ∑ | I39: =SUBTOTAL(9,I40:I41) -> 24445.82
B40: 4.1 | C40: Alvenaria de Tijolos Cerâmicos Furados, e=14cm (17cm acabada) | D40: M2 | E40: 216.17 | F40: 74.54 | G40: =BDI!$C$26 -> 0.2034 | H40: =TRUNC(((F40*G40)+F40),2) -> 89.7 | I40: 19390.45 | J40: CED012 | K40: COMPOSIÇÃO
B41: 4.2 | C41: Vergas e Contravergas, moldadas no local, h=20cm (incluso Fôrmas, Concreto e Armadura) | D41: M | E41: 84.2 | F41: 49.9 | G41: =BDI!$C$26 -> 0.2034 | H41: =TRUNC(((F41*G41)+F41),2) -> 60.04 | I41: =IF(ISERR(ROUND((E41*H41),2)),"",ROUND((E41*H41),2)) -> 5055.37 | J41: 93188 | K41: SINAPI
B42: 5 | C42: COBERTURA | H42: ∑ | I42: =SUBTOTAL(9,I44:I51) -> 56063.99
B43: 5.1 | C43: Estrutura de Madeira
B44: 5.1.1 | C44: Estrutura em Madeira Aparelhada para Telha Cerâmica, Composta por Ripas, Caibros e Terças | D44: M2 | E44: 239.42 | F44: 83.52 | G44: =BDI!$C$26 -> 0.2034 | H44: =TRUNC(((F44*G44)+F44),2) -> 100.5 | I44: =IF(ISERR(ROUND((E44*H44),2)),"",ROUND((E44*H44),2)) -> 24061.71 | J44: 92540 | K44: SINAPI
B45: 5.1.2 | C45: Pontaletes, Mão Francesa e Berço para Estrutura de Madeira, de Telha Cerâmica | D45: M2 | E45: 239.42 | F45: 35.32 | G45: =BDI!$C$26 -> 0.2034 | H45: =TRUNC(((F45*G45)+F45),2) -> 42.5 | I45: 10175.35 | J45: 92565 | K45: SINAPI
B46: 5.1.3 | C46: Testeira de Madeira, Largura de 25cm | D46: M | E46: 66.44 | F46: 32.26 | G46: =BDI!$C$26 -> 0.2034 | H46: =TRUNC(((F46*G46)+F46),2) -> 38.82 | I46: =IF(ISERR(ROUND((E46*H46),2)),"",ROUND((E46*H46),2)) -> 2579.2 | J46: CED011 | K46: COMPOSIÇÃO
B47: 5.2 | C47: Telhamento Cerâmico
B48: 5.2.1 | C48: Telha Cerâmica tipo Portuguesa, Esmaltada (fornecimento e instalação) (inclui acessórios - Meia Telha e Cunhas) | D48: M2 | E48: 239.42 | F48: 46.68 | G48: =BDI!$C$26 -> 0.2034 | H48: 56.17 | I48: =IF(ISERR(ROUND((E48*H48),2)),"",ROUND((E48*H48),2)) -> 13448.22 | J48: 94195 | K48: SINAPI
B49: 5.2.2 | C49: Cumeeiras para Telha Cerâmica (fornecimento e instalação) | D49: M | E49: 55.16 | F49: 33.19 | G49: =BDI!$C$26 -> 0.2034 | H49: 39.94 | I49: 2203.09 | J49: 94219 | K49: SINAPI
B50: 5.3 | C50: Calhas
B51: 5.3.1 | C51: Calhas em Chapa em Aço Galvanizado, em Chapa 24 (e=0,65mm), desenvolvimento 33cm | D51: M | E51: 67.64 | F51: 44.19 | G51: =BDI!$C$26 -> 0.2034 | H51: 53.17 | I51: =IF(ISERR(ROUND((E51*H51),2)),"",ROUND((E51*H51),2)) -> 3596.42 | J51: 94227 | K51: SINAPI
B52: 6 | C52: PISO | H52: ∑ | I52: =SUBTOTAL(9,I53:I59) -> 19329.7
B53: 6.1 | C53: Regularização e Apiloamento Manual | D53: M2 | E53: 175.63 | F53: 8.29 | G53: =BDI!$C$26 -> 0.2034 | H53: =TRUNC(((F53*G53)+F53),2) -> 9.97 | I53: =IF(ISERR(ROUND((E53*H53),2)),"",ROUND((E53*H53),2)) -> 1751.03 | J53: CED003 | K53: COMPOSIÇÃO
B54: 6.2 | C54: Lastro de Brita Graduada para Piso de Concreto, e=20cm | D54: M3 | E54: 35.13 | F54: 82.2 | G54: =BDI!$C$26 -> 0.2034 | H54: 98.91 | I54: 3474.71 | J54: 88549 | K54: SINAPI
B55: 6.3 | C55: Lona 200 Micras (fornecimento e instalação) | D55: M2 | E55: 175.63 | F55: 5.2 | G55: =BDI!$C$26 -> 0.2034 | H55: 6.25 | I55: 1097.69 | J55: 68053 | K55: SINAPI
B56: 6.4 | C56: Tela Soldada Q-92 - Aço CA-60 4.2mm - Malha 15x15cm (fornecimento, corte e instalação) | D56: M2 | E56: 175.63 | F56: 10.75 | G56: =BDI!$C$26 -> 0.2034 | H56: 12.93 | I56: =IF(ISERR(ROUND((E56*H56),2)),"",ROUND((E56*H56),2)) -> 2270.9 | J56: 85662 | K56: SINAPI
B57: 6.5 | C57: Forma de Madeira Serrada para Concreto, (material e mão-de-obra para fabricação, montagem e desforma) | D57: M2 | E57: 2.54 | F57: 66.46 | G57: =BDI!$C$26 -> 0.2034 | H57: =TRUNC(((F57*G57)+F57),2) -> 79.97 | I57: =IF(ISERR(ROUND((E57*H57),2)),"",ROUND((E57*H57),2)) -> 203.12 | J57: 96536 | K57: SINAPI
B58: 6.6 | C58: Piso em Concreto 25 Mpa , e=7cm | D58: M3 | E58: 12.29 | F58: 335.34 | G58: =BDI!$C$26 -> 0.2034 | H58: =TRUNC(((F58*G58)+F58),2) -> 403.54 | I58: =IF(ISERR(ROUND((E58*H58),2)),"",ROUND((E58*H58),2)) -> 4959.51 | J58: CED100 | K58: COMPOSIÇÃO
B59: 6.7 | C59: Contrapiso/Regularização em Argamassa, e=2cm | D59: M2 | E59: 175.63 | F59: 26.37 | G59: =BDI!$C$26 -> 0.2034 | H59: =TRUNC(((F59*G59)+F59),2) -> 31.73 | I59: =IF(ISERR(ROUND((E59*H59),2)),"",ROUND((E59*H59),2)) -> 5572.74 | J59: 87620 | K59: SINAPI
B60: INSTALAÇÕES
B61: 7 | C61: INSTALAÇÕES ELÉTRICAS | H61: ∑ | I61: =SUBTOTAL(9,I62:I98) -> 28934.46
B62: 7.1 | C62: Ligação
B63: 7.1.1 | C63: Fita de amaração (fornecimento e instalação), Conforme projeto. | D63: M | E63: 3 | F63: 3.46 | G63: =BDI!$C$26 -> 0.2034 | H63: =TRUNC(((F63*G63)+F63),2) -> 4.16 | I63: =IF(ISERR(ROUND((E63*H63),2)),"",ROUND((E63*H63),2)) -> 12.48 | J63: 91175 | K63: SINAPI
B64: 7.1.2 | C64: Eletroduto PVC Rígido - 1 1/2" | D64: M | E64: 8 | F64: 11.56 | G64: =BDI!$C$26 -> 0.2034 | H64: 13.91 | I64: 111.28 | J64: 93008 | K64: SINAPI
B65: 7.1.3 | C65: Curva 180° para Eletroduto Roscável 1 1/2" (2x90°) | D65: UN | E65: 1 | F65: 21.31 | G65: =BDI!$C$26 -> 0.2034 | H65: 25.64 | I65: 25.64 | J65: 93018 | K65: SINAPI
B66: 7.1.4 | C66: Cabo de Cobre Isolado 1KV - 10mm2 - 1KV (4x13m) | D66: M | E66: 52 | F66: 6.09 | G66: =BDI!$C$26 -> 0.2034 | H66: 7.32 | I66: 380.64 | J66: 92980 | K66: SINAPI
B67: 7.1.5 | C67: Mureta (0,46cm x 1,90m) com pingadeira
B68: 7.1.5.1 | C68: Alvenaria de Tijolos Cerâmicos Furados, e=14cm (17cm acabada) | D68: M2 | E68: 0.874 | F68: 74.54 | G68: =BDI!$C$26 -> 0.2034 | H68: =TRUNC(((F68*G68)+F68),2) -> 89.7 | I68: =IF(ISERR(ROUND((E68*H68),2)),"",ROUND((E68*H68),2)) -> 78.4 | J68: CED012 | K68: COMPOSIÇÃO
B69: 7.1.5.2 | C69: Chapisco | D69: M2 | E69: 3.03 | F69: 3.32 | G69: =BDI!$C$26 -> 0.2034 | H69: 3.99 | I69: 12.09 | J69: 87879 | K69: SINAPI
B70: 7.1.5.3 | C70: Emboço/Reboco (Massa Única) | D70: M2 | E70: 3.03 | F70: 26.83 | G70: =BDI!$C$26 -> 0.2034 | H70: 32.28 | I70: 97.81 | J70: 89173 | K70: SINAPI
B71: 7.1.6 | C71: Caixa de Proteção para Medidor Trifásico (fornecimento e instalação) | D71: UN | E71: 1 | F71: 232.91 | G71: =BDI!$C$26 -> 0.2034 | H71: 280.28 | I71: 280.28 | J71: CEL100 | K71: COMPOSIÇÃO
B72: 7.1.7 | C72: Disjuntor Tripolar 50A - (Fornecimento e Instalação) | D72: UN | E72: 1 | F72: 23.75 | G72: =BDI!$C$26 -> 0.2034 | H72: 28.58 | I72: 28.58 | J72: 93659 | K72: SINAPI
B73: 7.1.8 | C73: Disjuntor de Proteção Contra Raios (DPS), 275V - 45KA (fornecimento e instalação) | D73: UN | E73: 1 | F73: 108.35 | G73: =BDI!$C$26 -> 0.2034 | H73: 130.38 | I73: 130.38 | J73: CEL017 | K73: COMPOSIÇÃO
B74: 7.1.9 | C74: Caixa de Passagem Padrão CELESC, 65x41x70cm (fornecimento e instalação) | D74: UN | E74: 1 | F74: 93.99 | G74: =BDI!$C$26 -> 0.2034 | H74: 113.1 | I74: 113.1 | J74: CEL010 | K74: COMPOSIÇÃO
B75: 7.1.10 | C75: Haste de Aterramento em Aço de 2,4m e Ø5/8" | D75: UN | E75: 1 | F75: 50.4 | G75: =BDI!$C$26 -> 0.2034 | H75: 60.65 | I75: 60.65 | J75: 96985 | K75: SINAPI
B76: 7.1.11 | C76: Tampa de Ferro Fundido, 65x41cm (fornecimento e instalação) | D76: UN | E76: 1 | F76: 224.91 | G76: =BDI!$C$26 -> 0.2034 | H76: 270.65 | I76: 270.65 | J76: 84798 | K76: SINAPI
B77: 7.2 | C77: Ramal de Carga (do Medidor de Energia até Quadro de Disjuntores)
B78: 7.2.1 | C78: Cabo de Cobre Isolado 10mm2 - 1KV | D78: M | E78: 160 | F78: 6.09 | G78: =BDI!$C$26 -> 0.2034 | H78: =TRUNC(((F78*G78)+F78),2) -> 7.32 | I78: =IF(ISERR(ROUND((E78*H78),2)),"",ROUND((E78*H78),2)) -> 1171.2 | J78: 92980 | K78: SINAPI
B79: 7.2.2 | C79: Eletroduto PEAD 40mm - 1 1/2" (fornecimento, escavação, assentamento e reaterro) | D79: M | E79: 40 | F79: 25.58 | G79: =BDI!$C$26 -> 0.2034 | H79: =TRUNC(((F79*G79)+F79),2) -> 30.78 | I79: =IF(ISERR(ROUND((E79*H79),2)),"",ROUND((E79*H79),2)) -> 1231.2 | J79: CEL006 | K79: COMPOSIÇÃO
B80: 7.2.3 | C80: Caixa de Passagem 30x30x40, Fundo de Brita e Tampa (fornecimento e instalação) | D80: UN | E80: 3 | F80: 162.79 | G80: =BDI!$C$26 -> 0.2034 | H80: =TRUNC(((F80*G80)+F80),2) -> 195.9 | I80: =IF(ISERR(ROUND((E80*H80),2)),"",ROUND((E80*H80),2)) -> 587.7 | J80: 83446 | K80: SINAPI
B81: 7.2.4 | C81: Haste de Aterramento em Aço de 2,4m e Ø5/8" | D81: UN | E81: 2 | F81: 50.4 | G81: =BDI!$C$26 -> 0.2034 | H81: 60.65 | I81: 121.3 | J81: 96985 | K81: SINAPI
B82: 7.3 | C82: Quadro de Distribuição
B83: 7.3.1 | C83: Quadro de Distribuição de Energia para 24 Disjuntores Monopolares, com Barramento Trifasico e Neutro (Fornecimento e Instalação) | D83: UN | E83: 1 | F83: 565.3 | G83: =BDI!$C$26 -> 0.2034 | H83: =TRUNC(((F83*G83)+F83),2) -> 680.28 | I83: =IF(ISERR(ROUND((E83*H83),2)),"",ROUND((E83*H83),2)) -> 680.28 | J83: 74131/5 | K83: SINAPI
B84: 7.3.2 | C84: Disjuntor Monopolar 10A - Din (Fornecimento e Instalação) | D84: UN | E84: 2 | F84: 11.01 | G84: =BDI!$C$26 -> 0.2034 | H84: =TRUNC(((F84*G84)+F84),2) -> 13.24 | I84: =IF(ISERR(ROUND((E84*H84),2)),"",ROUND((E84*H84),2)) -> 26.48 | J84: 93653 | K84: SINAPI
B85: 7.3.3 | C85: Disjuntor Monopolar 16A - Din (Fornecimento e Instalação) | D85: UN | E85: 5 | F85: 11.68 | G85: =BDI!$C$26 -> 0.2034 | H85: 14.05 | I85: 70.25 | J85: 93654 | K85: SINAPI
B86: 7.3.4 | C86: Disjuntor Monopolar 25A - Din (Fornecimento e Instalação) | D86: UN | E86: 3 | F86: 12.78 | G86: =BDI!$C$26 -> 0.2034 | H86: 15.37 | I86: 46.11 | J86: 93656 | K86: SINAPI
B87: 7.3.5 | C87: Disjuntor Tripolar 40A - Din (Fornecimento e Instalação) | D87: UN | E87: 1 | F87: 84.75 | G87: =BDI!$C$26 -> 0.2034 | H87: 101.98 | I87: 101.98 | J87: 93672 | K87: SINAPI
B88: 7.3.6 | C88: Disjuntor Diferencial Residual (DR) 25A (fornecimento e instalação) | D88: UN | E88: 3 | F88: 142.1 | G88: =BDI!$C$26 -> 0.2034 | H88: =TRUNC(((F88*G88)+F88),2) -> 171 | I88: =IF(ISERR(ROUND((E88*H88),2)),"",ROUND((E88*H88),2)) -> 513 | J88: CEL013 | K88: COMPOSIÇÃO
B89: 7.3.7 | C89: Disjuntor de Proteção Contra Raios (DPS), 45KA (fornecimento e instalação) | D89: UN | E89: 1 | F89: 108.35 | G89: =BDI!$C$26 -> 0.2034 | H89: =TRUNC(((F89*G89)+F89),2) -> 130.38 | I89: =IF(ISERR(ROUND((E89*H89),2)),"",ROUND((E89*H89),2)) -> 130.38 | J89: CEL017 | K89: COMPOSIÇÃO
B90: 7.4 | C90: Iluminação
B91: 7.4.1 | C91: Ponto de Iluminação (Caixas, Eletroduto, Cabos, Interruptor) (fornecimento e instalação) | D91: UN | E91: 40 | F91: 134.62 | G91: =BDI!$C$26 -> 0.2034 | H91: =TRUNC(((F91*G91)+F91),2) -> 162 | I91: =IF(ISERR(ROUND((E91*H91),2)),"",ROUND((E91*H91),2)) -> 6480 | J91: 93128 | K91: SINAPI
B92: 7.4.2 | C92: Sensor de Presença com Fotocélula (fornecimento e instalação) | D92: UN | E92: 5 | F92: 48.72 | G92: =BDI!$C$26 -> 0.2034 | H92: 58.62 | I92: 293.1 | J92: 97597 | K92: SINAPI
B93: 7.4.3 | C93: Luminária Calha, com 2 Lâmpadas de LED Tubular de 18W (fornecimento e instalação) | D93: UN | E93: 26 | F93: 151.99 | G93: =BDI!$C$26 -> 0.2034 | H93: 182.9 | I93: 4755.4 | J93: CEL101 | K93: COMPOSIÇÃO
B94: 7.4.4 | C94: Luminária Plafon, com Lâmpada LED (fornecimento e instalação) | D94: UN | E94: 5 | F94: 105.77 | G94: =BDI!$C$26 -> 0.2034 | H94: 127.28 | I94: 636.4 | J94: 97592 | K94: SINAPI
B95: 7.4.5 | C95: Luminária Arandela Tartaruga, com 1 Lâmpada LED (fornecimento e instalação) | D95: UN | E95: 9 | F95: 82.04 | G95: =BDI!$C$26 -> 0.2034 | H95: 98.72 | I95: 888.48 | J95: 97607 | K95: SINAPI
B96: 7.5 | C96: Tomadas
B97: 7.5.1 | C97: Ponto de Tomada 2P+T - 10A (Caixa, Eletroduto, Cabos e Tomada com Placa) (fornecimento e instalação) | D97: UN | E97: 46 | F97: 159.38 | G97: =BDI!$C$26 -> 0.2034 | H97: =TRUNC(((F97*G97)+F97),2) -> 191.79 | I97: =IF(ISERR(ROUND((E97*H97),2)),"",ROUND((E97*H97),2)) -> 8822.34 | J97: 93141 | K97: SINAPI
B98: 7.5.2 | C98: Ponto de Tomada 2P+T - 20A (Caixa, Eletroduto, Cabos e Tomada com Placa) (fornecimento e instalação) | D98: UN | E98: 4 | F98: 161.4 | G98: =BDI!$C$26 -> 0.2034 | H98: 194.22 | I98: 776.88 | J98: 93143 | K98: SINAPI
B99: 8 | C99: INSTALAÇÕES DA REDE LÓGICA E TELEFONIA | H99: ∑ | I99: =SUBTOTAL(9,I100:I105) -> 2308.59
B100: 8.1 | C100: Ramal de Entrada
B101: 8.1.1 | C101: Eletroduto PEAD 40mm - 1 1/2" (fornecimento, escavação, assentamento e reaterro) | D101: M | E101: 40 | F101: 25.58 | G101: =BDI!$C$26 -> 0.2034 | H101: =TRUNC(((F101*G101)+F101),2) -> 30.78 | I101: =IF(ISERR(ROUND((E101*H101),2)),"",ROUND((E101*H101),2)) -> 1231.2 | J101: CEL006 | K101: COMPOSIÇÃO
B102: 8.1.2 | C102: Caixa de Passagem 30x30x40, Fundo de Brita e Tampa (fornecimento e instalação) | D102: UN | E102: 3 | F102: 162.79 | G102: =BDI!$C$26 -> 0.2034 | H102: 195.9 | I102: 587.7 | J102: 83446 | K102: SINAPI
B103: 8.2 | C103: Quadro e Pontos
B104: 8.2.1 | C104: Quadro de Distribuição para Comunicação 20x20x12cm (fornecimento e instalação) | D104: UN | E104: 1 | F104: 134.6 | G104: =BDI!$C$26 -> 0.2034 | H104: =TRUNC(((F104*G104)+F104),2) -> 161.97 | I104: =IF(ISERR(ROUND((E104*H104),2)),"",ROUND((E104*H104),2)) -> 161.97 | J104: 83371 | K104: SINAPI
B105: 8.2.2 | C105: Ponto de Comunicação SEM FIAÇÃO (Caixa, Eletroduto) (fornecimento e instalação) | D105: UN | E105: 3 | F105: 90.78 | G105: =BDI!$C$26 -> 0.2034 | H105: =TRUNC(((F105*G105)+F105),2) -> 109.24 | I105: 327.72 | J105: CEL020 | K105: COMPOSIÇÃO
B106: 9 | C106: REDE HIDRÁULICA | H106: ∑ | I106: =SUBTOTAL(9,I107:I163) -> 4027.64
B107: 9.1 | C107: Alimentação
B108: 9.1.1 | C108: Caixa d'Água
B109: 9.1.1.1 | C109: 1.500 Litros - Polietileno | D109: UN | E109: 1 | F109: 602.76 | G109: =BDI!$C$26 -> 0.2034 | H109: =TRUNC(((F109*G109)+F109),2) -> 725.36 | I109: =IF(ISERR(ROUND((E109*H109),2)),"",ROUND((E109*H109),2)) -> 725.36 | J109: CHD202 | K109: COMPOSIÇÃO
B110: 9.1.2 | C110: Torneira tipo Bóia
B111: 9.1.2.1 | C111: 3/4" | D111: UN | E111: 1 | F111: 21.15 | G111: =BDI!$C$26 -> 0.2034 | H111: =TRUNC(((F111*G111)+F111),2) -> 25.45 | I111: =IF(ISERR(ROUND((E111*H111),2)),"",ROUND((E111*H111),2)) -> 25.45 | J111: 94796 | K111: SINAPI
B112: 9.1.3 | C112: Válvula de Esfera - PVC Soldável
B113: 9.1.3.1 | C113: 3/4" | D113: UN | E113: 1 | F113: 21.31 | G113: =BDI!$C$26 -> 0.2034 | H113: =TRUNC(((F113*G113)+F113),2) -> 25.64 | I113: =IF(ISERR(ROUND((E113*H113),2)),"",ROUND((E113*H113),2)) -> 25.64 | J113: 94489 | K113: SINAPI
B114: 9.1.4 | C114: Adaptador Soldável Longo com Flange para Caixa d'Água
B115: 9.1.4.1 | C115: 25mm - 3/4" | D115: UN | E115: 1 | F115: 14.07 | G115: =BDI!$C$26 -> 0.2034 | H115: 16.93 | I115: =IF(ISERR(ROUND((E115*H115),2)),"",ROUND((E115*H115),2)) -> 16.93 | J115: 94703 | K115: SINAPI
B116: 9.1.5 | C116: Adaptador Soldável Curto com Bolsa e Rosca para Registro
B117: 9.1.5.1 | C117: 25mm - 3/4" | D117: UN | E117: 2 | F117: 3.77 | G117: =BDI!$C$26 -> 0.2034 | H117: =TRUNC(((F117*G117)+F117),2) -> 4.53 | I117: =IF(ISERR(ROUND((E117*H117),2)),"",ROUND((E117*H117),2)) -> 9.06 | J117: 89429 | K117: SINAPI
B118: 9.1.6 | C118: Joelho 45° Soldável
B119: 9.1.6.1 | C119: 25mm | D119: UN | E119: 1 | F119: 5.4 | G119: =BDI!$C$26 -> 0.2034 | H119: 6.49 | I119: =IF(ISERR(ROUND((E119*H119),2)),"",ROUND((E119*H119),2)) -> 6.49 | J119: 89409 | K119: SINAPI
B120: 9.1.7 | C120: Joelho 90° Soldável
B121: 9.1.7.1 | C121: 25mm | D121: UN | E121: 5 | F121: 4.9 | G121: =BDI!$C$26 -> 0.2034 | H121: 5.89 | I121: =IF(ISERR(ROUND((E121*H121),2)),"",ROUND((E121*H121),2)) -> 29.45 | J121: 89408 | K121: SINAPI
B122: 9.1.8 | C122: Tubos PVC Soldável
B123: 9.1.8.1 | C123: 25mm | D123: M | E123: 16.63 | F123: 7.21 | G123: =BDI!$C$26 -> 0.2034 | H123: 8.67 | I123: =IF(ISERR(ROUND((E123*H123),2)),"",ROUND((E123*H123),2)) -> 144.18 | J123: 89402 | K123: SINAPI
B124: 9.1.9 | C124: Hidrômetro
B125: 9.1.9.1 | C125: Cavalete para Medição de Água - Entrada Principal em PVC 25mm | D125: UN | E125: 1 | F125: 128.87 | G125: =BDI!$C$26 -> 0.2034 | H125: 155.08 | I125: =IF(ISERR(ROUND((E125*H125),2)),"",ROUND((E125*H125),2)) -> 155.08 | J125: 95635 | K125: SINAPI
B126: 9.1.9.2 | C126: Hidrômetro 1,5m³/h - 1/2" | D126: UN | E126: 1 | F126: 168.62 | G126: =BDI!$C$26 -> 0.2034 | H126: 202.91 | I126: 202.91 | J126: 95673 | K126: SINAPI
B127: 9.1.9.3 | C127: Caixa de Concreto PréMoldado para Abrigo de Hidrômetro | D127: UN | E127: 1 | F127: 71.73 | G127: =BDI!$C$26 -> 0.2034 | H127: 86.31 | I127: 86.31 | J127: 95676 | K127: SINAPI
B128: 9.2 | C128: Metais - Registros
B129: 9.2.1 | C129: Registro de Gaveta com Canopla Cromada
B130: 9.2.1.1 | C130: 3/4" | D130: UN | E130: 5 | F130: 62.54 | G130: =BDI!$C$26 -> 0.2034 | H130: =TRUNC(((F130*G130)+F130),2) -> 75.26 | I130: =IF(ISERR(ROUND((E130*H130),2)),"",ROUND((E130*H130),2)) -> 376.3 | J130: 89987 | K130: SINAPI
B131: 9.2.1.2 | C131: 1.1/2" | D131: UN | E131: 2 | F131: 123.8 | G131: =BDI!$C$26 -> 0.2034 | H131: 148.98 | I131: 297.96 | J131: 94794 | K131: SINAPI
B132: 9.2.2 | C132: Válvula de Descarga Baixa Pressão, com Acabamento em Metal Cromado
B133: 9.2.2.1 | C133: 1.1/2" | D133: UN | E133: 2 | F133: 197.31 | G133: =BDI!$C$26 -> 0.2034 | H133: =TRUNC(((F133*G133)+F133),2) -> 237.44 | I133: =IF(ISERR(ROUND((E133*H133),2)),"",ROUND((E133*H133),2)) -> 474.88 | J133: 99635 | K133: SINAPI
B134: 9.3 | C134: Água Fria
B135: 9.3.1 | C135: Válvula de Esfera - PVC Soldável
B136: 9.3.1.1 | C136: 1.1/2" | D136: UN | E136: 3 | F136: 50.67 | G136: =BDI!$C$26 -> 0.2034 | H136: 60.97 | I136: =IF(ISERR(ROUND((E136*H136),2)),"",ROUND((E136*H136),2)) -> 182.91 | J136: 94492 | K136: SINAPI
B137: 9.3.2 | C137: Adaptador Soldável com Flange para Caixa d'Água
B138: 9.3.2.1 | C138: 50mm - 1.1/2" | D138: UN | E138: 3 | F138: 28.39 | G138: =BDI!$C$26 -> 0.2034 | H138: =TRUNC(((F138*G138)+F138),2) -> 34.16 | I138: =IF(ISERR(ROUND((E138*H138),2)),"",ROUND((E138*H138),2)) -> 102.48 | J138: 94706 | K138: SINAPI
B139: 9.3.3 | C139: Adaptador Soldável Curto com Bolsa e Rosca para Registro
B140: 9.3.3.1 | C140: 50mm - 1.1/2" | D140: UN | E140: 6 | F140: 7.77 | G140: =BDI!$C$26 -> 0.2034 | H140: 9.35 | I140: =IF(ISERR(ROUND((E140*H140),2)),"",ROUND((E140*H140),2)) -> 56.1 | J140: 89596 | K140: SINAPI
B141: 9.3.4 | C141: Bucha de Redução Soldável Curta
B142: 9.3.4.1 | C142: 32mm - 25mm | D142: UN | E142: 2 | F142: 5.02 | G142: =BDI!$C$26 -> 0.2034 | H142: 6.04 | I142: =IF(ISERR(ROUND((E142*H142),2)),"",ROUND((E142*H142),2)) -> 12.08 | J142: CHD007 | K142: COMPOSIÇÃO
B143: 9.3.5 | C143: Bucha de Redução Soldável Longa
B144: 9.3.5.1 | C144: 50mm - 25mm | D144: UN | E144: 2 | F144: 7.16 | G144: =BDI!$C$26 -> 0.2034 | H144: 8.61 | I144: =IF(ISERR(ROUND((E144*H144),2)),"",ROUND((E144*H144),2)) -> 17.22 | J144: CHD011 | K144: COMPOSIÇÃO
B145: 9.3.6 | C145: Joelho 45° Soldável
B146: 9.3.6.1 | C146: 50mm | D146: UN | E146: 3 | F146: 11.17 | G146: =BDI!$C$26 -> 0.2034 | H146: 13.44 | I146: =IF(ISERR(ROUND((E146*H146),2)),"",ROUND((E146*H146),2)) -> 40.32 | J146: 89502 | K146: SINAPI
B147: 9.3.7 | C147: Joelho 90° Soldável
B148: 9.3.7.1 | C148: 25mm | D148: UN | E148: 11 | F148: 4.9 | G148: =BDI!$C$26 -> 0.2034 | H148: 5.89 | I148: =IF(ISERR(ROUND((E148*H148),2)),"",ROUND((E148*H148),2)) -> 64.79 | J148: 89408 | K148: SINAPI
B149: 9.3.7.2 | C149: 50mm | D149: UN | E149: 10 | F149: 10.01 | G149: =BDI!$C$26 -> 0.2034 | H149: 12.04 | I149: 120.4 | J149: 89501 | K149: SINAPI
B150: 9.3.8 | C150: Tê 90° Soldável
B151: 9.3.8.1 | C151: 25mm | D151: UN | E151: 3 | F151: 5.19 | G151: =BDI!$C$26 -> 0.2034 | H151: 6.24 | I151: =IF(ISERR(ROUND((E151*H151),2)),"",ROUND((E151*H151),2)) -> 18.72 | J151: 89617 | K151: SINAPI
B152: 9.3.8.2 | C152: 50mm | D152: UN | E152: 2 | F152: 15.34 | G152: =BDI!$C$26 -> 0.2034 | H152: 18.46 | I152: 36.92 | J152: 89625 | K152: SINAPI
B153: 9.3.9 | C153: Tê de Redução 90° Soldável
B154: 9.3.9.1 | C154: 50mm - 32mm | D154: UN | E154: 2 | F154: 18.29 | G154: =BDI!$C$26 -> 0.2034 | H154: 22.01 | I154: =IF(ISERR(ROUND((E154*H154),2)),"",ROUND((E154*H154),2)) -> 44.02 | J154: CHD014 | K154: COMPOSIÇÃO
B155: 9.3.9.2 | C155: 50mm - 25mm | D155: UN | E155: 1 | F155: 14.58 | G155: =BDI!$C$26 -> 0.2034 | H155: 17.54 | I155: 17.54 | J155: 89627 | K155: SINAPI
B156: 9.3.9.3 | C156: 32mm - 25mm | D156: UN | E156: 2 | F156: 9.5 | G156: =BDI!$C$26 -> 0.2034 | H156: 11.43 | I156: 22.86 | J156: 89622 | K156: SINAPI
B157: 9.3.10 | C157: Tubos PVC Soldável
B158: 9.3.10.1 | C158: 25mm | D158: M | E158: 27.12 | F158: 7.21 | G158: =BDI!$C$26 -> 0.2034 | H158: =TRUNC(((F158*G158)+F158),2) -> 8.67 | I158: =IF(ISERR(ROUND((E158*H158),2)),"",ROUND((E158*H158),2)) -> 235.13 | J158: 89402 | K158: SINAPI
B159: 9.3.10.2 | C159: 32mm | D159: M | E159: 3.85 | F159: 11.29 | G159: =BDI!$C$26 -> 0.2034 | H159: =TRUNC(((F159*G159)+F159),2) -> 13.58 | I159: 52.28 | J159: 89403 | K159: SINAPI
B160: 9.3.10.3 | C160: 50mm | D160: M | E160: 25.62 | F160: 10.82 | G160: =BDI!$C$26 -> 0.2034 | H160: =TRUNC(((F160*G160)+F160),2) -> 13.02 | I160: 333.57 | J160: 89449 | K160: SINAPI
B161: 9.3.11 | C161: Joelho 90° Soldável com Bucha de Latão
B162: 9.3.11.1 | C162: 25mm - 1/2" | D162: UN | E162: 4 | F162: 10.88 | G162: =BDI!$C$26 -> 0.2034 | H162: 13.09 | I162: =IF(ISERR(ROUND((E162*H162),2)),"",ROUND((E162*H162),2)) -> 52.36 | J162: 90373 | K162: SINAPI
B163: 9.3.11.2 | C163: 25mm - 3/4" | D163: UN | E163: 3 | F163: 11.62 | G163: =BDI!$C$26 -> 0.2034 | H163: 13.98 | I163: 41.94 | J163: 89366 | K163: SINAPI
B164: 10 | C164: REDE SANITÁRIA | H164: ∑ | I164: =SUBTOTAL(9,I165:I220) -> 8359.19
B165: 10.1 | C165: Esgoto
B166: 10.1.1 | C166: Caixa de gordura
B167: 10.1.1.1 | C167: Simples (Capacidade: 36L), Pré-Moldada Ø40cm | D167: UN | E167: 2 | F167: 64.88 | G167: =BDI!$C$26 -> 0.2034 | H167: =TRUNC(((F167*G167)+F167),2) -> 78.07 | I167: =IF(ISERR(ROUND((E167*H167),2)),"",ROUND((E167*H167),2)) -> 156.14 | J167: 98102 | K167: SINAPI
B168: 10.1.2 | C168: Caixa de inspeção
B169: 10.1.2.1 | C169: Alvenaria com Tampa, 60x60cm | D169: UN | E169: 3 | F169: 365.73 | G169: =BDI!$C$26 -> 0.2034 | H169: =TRUNC(((F169*G169)+F169),2) -> 440.11 | I169: =IF(ISERR(ROUND((E169*H169),2)),"",ROUND((E169*H169),2)) -> 1320.33 | J169: 97906 | K169: SINAPI
B170: 10.1.3 | C170: Caixa sifonada
B171: 10.1.3.1 | C171: 150x150x50 | D171: UN | E171: 3 | F171: 23.49 | G171: =BDI!$C$26 -> 0.2034 | H171: =TRUNC(((F171*G171)+F171),2) -> 28.26 | I171: =IF(ISERR(ROUND((E171*H171),2)),"",ROUND((E171*H171),2)) -> 84.78 | J171: 89707 | K171: SINAPI
B172: 10.1.4 | C172: Curva PVC 90° curta
B173: 10.1.4.1 | C173: 40mm | D173: UN | E173: 3 | F173: 7.69 | G173: =BDI!$C$26 -> 0.2034 | H173: =TRUNC(((F173*G173)+F173),2) -> 9.25 | I173: =IF(ISERR(ROUND((E173*H173),2)),"",ROUND((E173*H173),2)) -> 27.75 | J173: 89728 | K173: SINAPI
B174: 10.1.4.2 | C174: 100mm | D174: UN | E174: 2 | F174: 25.8 | G174: =BDI!$C$26 -> 0.2034 | H174: 31.04 | I174: 62.08 | J174: 89748 | K174: SINAPI
B175: 10.1.5 | C175: Joelho PVC 45°
B176: 10.1.5.1 | C176: 40mm | D176: UN | E176: 3 | F176: 5.85 | G176: =BDI!$C$26 -> 0.2034 | H176: =TRUNC(((F176*G176)+F176),2) -> 7.03 | I176: =IF(ISERR(ROUND((E176*H176),2)),"",ROUND((E176*H176),2)) -> 21.09 | J176: 89726 | K176: SINAPI
B177: 10.1.5.2 | C177: 50mm | D177: UN | E177: 5 | F177: 8.74 | G177: =BDI!$C$26 -> 0.2034 | H177: 10.51 | I177: 52.55 | J177: 89732 | K177: SINAPI
B178: 10.1.6 | C178: Joelho PVC 90°
B179: 10.1.6.1 | C179: 40mm | D179: UN | E179: 3 | F179: 7.33 | G179: =BDI!$C$26 -> 0.2034 | H179: =TRUNC(((F179*G179)+F179),2) -> 8.82 | I179: =IF(ISERR(ROUND((E179*H179),2)),"",ROUND((E179*H179),2)) -> 26.46 | J179: 89724 | K179: SINAPI
B180: 10.1.6.2 | C180: 50mm | D180: UN | E180: 7 | F180: 8.39 | G180: =BDI!$C$26 -> 0.2034 | H180: 10.09 | I180: 70.63 | J180: 89731 | K180: SINAPI
B181: 10.1.7 | C181: Junção Simples PVC
B182: 10.1.7.1 | C182: 100mm - 50mm | D182: UN | E182: 2 | F182: 22.1 | G182: =BDI!$C$26 -> 0.2034 | H182: =TRUNC(((F182*G182)+F182),2) -> 26.59 | I182: =IF(ISERR(ROUND((E182*H182),2)),"",ROUND((E182*H182),2)) -> 53.18 | J182: CHD019 | K182: COMPOSIÇÃO
B183: 10.1.8 | C183: Luva Simples PVC
B184: 10.1.8.1 | C184: 100mm | D184: UN | E184: 2 | F184: 13.68 | G184: =BDI!$C$26 -> 0.2034 | H184: =TRUNC(((F184*G184)+F184),2) -> 16.46 | I184: =IF(ISERR(ROUND((E184*H184),2)),"",ROUND((E184*H184),2)) -> 32.92 | J184: 89778 | K184: SINAPI
B185: 10.1.9 | C185: Tê Sanitário PVC
B186: 10.1.9.1 | C186: 50mm - 50mm | D186: UN | E186: 3 | F186: 14.29 | G186: =BDI!$C$26 -> 0.2034 | H186: =TRUNC(((F186*G186)+F186),2) -> 17.19 | I186: =IF(ISERR(ROUND((E186*H186),2)),"",ROUND((E186*H186),2)) -> 51.57 | J186: 89784 | K186: SINAPI
B187: 10.1.10 | C187: Tubo Rígido com Ponta Lisa
B188: 10.1.10.1 | C188: 40mm | D188: M | E188: 3.35 | F188: 15.47 | G188: =BDI!$C$26 -> 0.2034 | H188: =TRUNC(((F188*G188)+F188),2) -> 18.61 | I188: =IF(ISERR(ROUND((E188*H188),2)),"",ROUND((E188*H188),2)) -> 62.34 | J188: 89711 | K188: SINAPI
B189: 10.1.10.2 | C189: 50mm - 2" | D189: M | E189: 10.35 | F189: 22.27 | G189: =BDI!$C$26 -> 0.2034 | H189: 26.79 | I189: 277.28 | J189: 89712 | K189: SINAPI
B190: 10.1.10.3 | C190: 75mm - 3" | D190: M | E190: 6.57 | F190: 33.77 | G190: =BDI!$C$26 -> 0.2034 | H190: 40.63 | I190: 266.94 | J190: 89713 | K190: SINAPI
B191: 10.1.10.4 | C191: 100mm - 4" | D191: M | E191: 29.02 | F191: 43.72 | G191: =BDI!$C$26 -> 0.2034 | H191: 52.61 | I191: 1526.74 | J191: 89714 | K191: SINAPI
B192: 10.2 | C192: Ventilação
B193: 10.2.1 | C193: Curva PVC 90° Curta
B194: 10.2.1.1 | C194: 50mm | D194: UN | E194: 3 | F194: 12.5 | G194: =BDI!$C$26 -> 0.2034 | H194: =TRUNC(((F194*G194)+F194),2) -> 15.04 | I194: =IF(ISERR(ROUND((E194*H194),2)),"",ROUND((E194*H194),2)) -> 45.12 | J194: 89733 | K194: SINAPI
B195: 10.2.2 | C195: Tubo Rígido com Ponta Lisa
B196: 10.2.2.1 | C196: 50mm - 2" | D196: M | E196: 10.43 | F196: 22.27 | G196: =BDI!$C$26 -> 0.2034 | H196: =TRUNC(((F196*G196)+F196),2) -> 26.79 | I196: =IF(ISERR(ROUND((E196*H196),2)),"",ROUND((E196*H196),2)) -> 279.42 | J196: 89712 | K196: SINAPI
B197: 10.3 | C197: Sistema de Tratamento
B198: 10.3.1 | C198: Fossa Séptica Pré-Moldada, Ø1,20m, h=2,00m
B199: 10.3.1.1 | C199: Tubo de Concreto Ø1,20m, com Junta Rígida de Argamassa (incluso escavação, carga e transporte) | D199: M | E199: 2 | F199: 435.15 | G199: =BDI!$C$26 -> 0.2034 | H199: =TRUNC(((F199*G199)+F199),2) -> 523.65 | I199: =IF(ISERR(ROUND((E199*H199),2)),"",ROUND((E199*H199),2)) -> 1047.3 | J199: 92816 | K199: SINAPI
B200: 10.3.1.2 | C200: Tampa Pré-Moldada Ø1,25m | D200: M3 | E200: 0.06135923152 | F200: 2200.46 | G200: =BDI!$C$26 -> 0.2034 | H200: =TRUNC(((F200*G200)+F200),2) -> 2648.03 | I200: =IF(ISERR(ROUND((E200*H200),2)),"",ROUND((E200*H200),2)) -> 162.48 | J200: 97739 | K200: SINAPI
B201: 10.3.1.3 | C201: Concreto Usinado (fornecimento, lançamento, adensamento e bombeado) FCK=25MPA | D201: M3 | E201: 0.1413716694 | F201: 379.03 | G201: =BDI!$C$26 -> 0.2034 | H201: 456.12 | I201: 64.48 | J201: 92722 | K201: SINAPI
... 119 more rows

Sheet CRONOGRAMA
F2: 1 | H2: =F2+1 -> 2 | J2: =H2+1 -> 3 | L2: =J2+1 -> 4 | N2: =L2+1 -> 5
B3: TODOS OS VALORES ESTÃO NA UNIDADE MONETÁRIA REAL
B4: ITEM | C4: DESCRIÇÃO | D4: TOTAL | E4: % | F4: =F2&"° MÊS" -> 1° MÊS | G4: % | H4: =H2&"° MÊS" -> 2° MÊS | I4: % | J4: =J2&"° MÊS" -> 3° MÊS | K4: % | L4: =L2&"° MÊS" -> 4° MÊS | M4: % | N4: =N2&"° MÊS" -> 5° MÊS | O4: % | R4: TOTAL
B6: =ORÇAMENTO!B5 -> 1 | C6: =ORÇAMENTO!C5 -> SERVIÇOS INICIAIS | D6: =ORÇAMENTO!I5 -> 8408.38 | E6: =D6*100/$D$33 -> 2.184266108 | F6: =$D6*G6/100 -> 8408.38 | G6: 100 | H6: =$D6*I6/100 -> 0 | I6: 0 | J6: =$D6*K6/100 -> 0 | K6: 0 | L6: =$D6*M6/100 -> 0 | M6: 0 | N6: =$D6*O6/100 -> 0 | O6: 0 | R6: =SUM(G6,I6,K6,M6,O6,) -> 100
B8: =ORÇAMENTO!B10 -> 2 | C8: =ORÇAMENTO!C10 -> INFRAESTRUTURA | D8: =ORÇAMENTO!I10 -> 38046.72 | E8: =D8*100/$D$33 -> 9.883492542 | F8: 38046.72 | G8: 100 | H8: 0 | I8: 0 | J8: 0 | K8: 0 | L8: 0 | M8: 0 | N8: 0 | O8: 0 | R8: =SUM(G8,I8,K8,M8,O8,) -> 100
B9: =ORÇAMENTO!B24 -> 3 | C9: =ORÇAMENTO!C24 -> SUPRAESTRUTURA | D9: =ORÇAMENTO!I24 -> 53858.83 | E9: =D9*100/$D$33 -> 13.99104429 | F9: 26929.415 | G9: 50 | H9: 26929.415 | I9: 50 | J9: 0 | K9: 0 | L9: 0 | M9: 0 | N9: 0 | O9: 0 | R9: 100
B10: =ORÇAMENTO!B39 -> 4 | C10: =ORÇAMENTO!C39 -> FECHAMENTOS | D10: =ORÇAMENTO!I39 -> 24445.82 | E10: =D10*100/$D$33 -> 6.3503524 | F10: 0 | G10: 0 | H10: 24445.82 | I10: 100 | J10: 0 | K10: 0 | L10: 0 | M10: 0 | N10: 0 | O10: 0 | R10: 100
B11: =ORÇAMENTO!B42 -> 5 | C11: =ORÇAMENTO!C42 -> COBERTURA | D11: =ORÇAMENTO!I42 -> 56063.99 | E11: =D11*100/$D$33 -> 14.56388427 | F11: 0 | G11: 0 | H11: 28031.995 | I11: 50 | J11: 28031.995 | K11: 50 | L11: 0 | M11: 0 | N11: 0 | O11: 0 | R11: 100
B12: =ORÇAMENTO!B52 -> 6 | C12: =ORÇAMENTO!C52 -> PISO | D12: =ORÇAMENTO!I52 -> 19329.7 | E12: =D12*100/$D$33 -> 5.021324986 | F12: 0 | G12: 0 | H12: 0 | I12: 0 | J12: 0 | K12: 0 | L12: 19329.7 | M12: 100 | N12: 0 | O12: 0 | R12: 100
B14: =ORÇAMENTO!B61 -> 7 | C14: =ORÇAMENTO!C61 -> INSTALAÇÕES ELÉTRICAS | D14: =ORÇAMENTO!I61 -> 28934.46 | E14: =D14*100/$D$33 -> 7.516377749 | F14: 5786.892 | G14: 20 | H14: 0 | I14: 0 | J14: 23147.568 | K14: 80 | L14: 0 | M14: 0 | N14: 0 | O14: 0 | R14: =SUM(G14,I14,K14,M14,O14,) -> 100
B15: =ORÇAMENTO!B99 -> 8 | C15: =ORÇAMENTO!C99 -> INSTALAÇÕES DA REDE LÓGICA E TELEFONIA | D15: =ORÇAMENTO!I99 -> 2308.59 | E15: 0.5997082547 | F15: 461.718 | G15: 20 | H15: 0 | I15: 0 | J15: 1846.872 | K15: 80 | L15: 0 | M15: 0 | N15: 0 | O15: 0 | R15: 100
B16: =ORÇAMENTO!B106 -> 9 | C16: =ORÇAMENTO!C106 -> REDE HIDRÁULICA | D16: =ORÇAMENTO!I106 -> 4027.64 | E16: 1.046270215 | F16: 805.528 | G16: 20 | H16: 0 | I16: 0 | J16: 3222.112 | K16: 80 | L16: 0 | M16: 0 | N16: 0 | O16: 0 | R16: 100
B17: =ORÇAMENTO!B164 -> 10 | C17: =ORÇAMENTO!C164 -> REDE SANITÁRIA | D17: =ORÇAMENTO!I164 -> 8359.19 | E17: 2.171487898 | F17: 0 | G17: 0 | H17: 0 | I17: 0 | J17: 8359.19 | K17: 100 | L17: 0 | M17: 0 | N17: 0 | O17: 0 | R17: 100
B18: =ORÇAMENTO!B221 -> 11 | C18: =ORÇAMENTO!C221 -> REDE PLUVIAL | D18: =ORÇAMENTO!I221 -> 7309.42 | E18: 1.898786493 | F18: 0 | G18: 0 | H18: 0 | I18: 0 | J18: 7309.42 | K18: 100 | L18: 0 | M18: 0 | N18: 0 | O18: 0 | R18: 100
B19: =ORÇAMENTO!B237 -> 12 | C19: =ORÇAMENTO!C237 -> INSTALAÇÕES DE GÁS COMBUSTÍVEL | D19: =ORÇAMENTO!I237 -> 2034.41 | E19: 0.5284838236 | F19: 0 | G19: 0 | H19: 0 | I19: 0 | J19: 0 | K19: 0 | L19: 2034.41 | M19: 100 | N19: 0 | O19: 0 | R19: 100
B21: =ORÇAMENTO!B245 -> 13 | C21: =ORÇAMENTO!C245 -> REVESTIMENTO PISO | D21: =ORÇAMENTO!I245 -> 17308.04 | E21: =D21*100/$D$33 -> 4.496153262 | F21: 0 | G21: 0 | H21: 0 | I21: 0 | J21: 0 | K21: 0 | L21: 17308.04 | M21: 100 | N21: 0 | O21: 0 | R21: =SUM(G21,I21,K21,M21,O21,) -> 100
B22: =ORÇAMENTO!B251 -> 14 | C22: =ORÇAMENTO!C251 -> REVESTIMENTO PAREDE | D22: =ORÇAMENTO!I251 -> 31498.13 | E22: 8.182348779 | F22: 0 | G22: 0 | H22: 0 | I22: 0 | J22: 0 | K22: 0 | L22: 31498.13 | M22: 100 | N22: 0 | O22: 0 | R22: 100
B23: =ORÇAMENTO!B257 -> 15 | C23: =ORÇAMENTO!C257 -> PINTURA | D23: =ORÇAMENTO!I257 -> 7082.56 | E23: 1.839854498 | F23: 0 | G23: 0 | H23: 0 | I23: 0 | J23: 0 | K23: 0 | L23: 7082.56 | M23: 100 | N23: 0 | O23: 0 | R23: 100
B24: =ORÇAMENTO!B260 -> 16 | C24: =ORÇAMENTO!C260 -> FORRO | D24: =ORÇAMENTO!I260 -> 6403.25 | E24: 1.663388424 | F24: 0 | G24: 0 | H24: 0 | I24: 0 | J24: 0 | K24: 0 | L24: 0 | M24: 0 | N24: 6403.25 | O24: 100 | R24: 100
B25: =ORÇAMENTO!B263 -> 17 | C25: =ORÇAMENTO!C263 -> ESQUADRIAS | D25: =ORÇAMENTO!I263 -> 51559.21 | E25: 13.3936662 | F25: 0 | G25: 0 | H25: 0 | I25: 0 | J25: 0 | K25: 0 | L25: 0 | M25: 0 | N25: 51559.21 | O25: 100 | R25: 100
B26: =ORÇAMENTO!B281 -> 18 | C26: =ORÇAMENTO!C281 -> APARELHOS SANITÁRIOS, LOUÇAS, METAIS E ACESSÓRIOS | D26: =ORÇAMENTO!I281 -> 5416.65 | E26: 1.40709685 | F26: 0 | G26: 0 | H26: 0 | I26: 0 | J26: 0 | K26: 0 | L26: 0 | M26: 0 | N26: 5416.65 | O26: 100 | R26: 100
B27: =ORÇAMENTO!B298 -> 19 | C27: =ORÇAMENTO!C298 -> ACESSÓRIOS DO PREVENTIVO CONTRA INCÊNDIO | D27: =ORÇAMENTO!I298 -> 2436.66 | E27: 0.632977322 | F27: 0 | G27: 0 | H27: 0 | I27: 0 | J27: 0 | K27: 0 | L27: 0 | M27: 0 | N27: 2436.66 | O27: 100 | R27: 100
B28: =ORÇAMENTO!B308 -> 20 | C28: =ORÇAMENTO!C308 -> ACESSÓRIOS DE ACESSIBILIDADE | D28: =ORÇAMENTO!I308 -> 2884.25 | E28: 0.7492489067 | F28: 0 | G28: 0 | H28: 0 | I28: 0 | J28: 0 | K28: 0 | L28: 0 | M28: 0 | N28: 2884.25 | O28: 100 | R28: 100
B30: =ORÇAMENTO!B313 -> 21 | C30: =ORÇAMENTO!C313 -> PAVIMENTAÇÃO | D30: =ORÇAMENTO!I313 -> 3386.12 | E30: =D30*100/$D$33 -> 0.8796209441 | F30: 0 | G30: 0 | H30: 0 | I30: 0 | J30: 0 | K30: 0 | L30: 0 | M30: 0 | N30: 3386.12 | O30: 100 | R30: =SUM(G30,I30,K30,M30,O30,) -> 100
B31: =ORÇAMENTO!B317 -> 22 | C31: =ORÇAMENTO!C317 -> LETRAS | D31: =ORÇAMENTO!I317 -> 3850.16 | E31: =D31*100/$D$33 -> 1.000165787 | F31: =$D31*G31/100 -> 0 | G31: 0 | H31: =$D31*I31/100 -> 0 | I31: 0 | J31: =$D31*K31/100 -> 0 | K31: 0 | L31: =$D31*M31/100 -> 0 | M31: 0 | N31: =$D31*O31/100 -> 3850.16 | O31: 100 | R31: 100
C33: SUBTOTAL | D33: =SUM(D6:D32) -> 384952.18 | E33: =SUM(E6:E32) -> 100 | F33: =SUM(F6:F32) -> 80438.653 | G33: =F33*100/$D$33 -> 20.89575204 | H33: =SUM(H6:H32) -> 79407.23 | I33: =H33*100/$D$33 -> 20.62781668 | J33: =SUM(J6:J32) -> 71917.157 | K33: =J33*100/$D$33 -> 18.6821015 | L33: =SUM(L6:L32) -> 77252.84 | M33: =L33*100/$D$33 -> 20.06816535 | N33: =SUM(N6:N32) -> 75936.3 | O33: =N33*100/$D$33 -> 19.72616443
C34: TOTAL ACUMULADO | F34: =F33 -> 80438.653 | G34: =G33 -> 20.89575204 | H34: =F34+H33 -> 159845.883 | I34: =G34+I33 -> 41.52356872 | J34: 231763.04 | K34: 60.20567022 | L34: 309015.88 | M34: 80.27383557 | N34: 384952.18 | O34: 100
C37: VALOR DO ORÇAMENTO | D37: =ORÇAMENTO!I320 -> 384952.18
D39: 384952.18
B224: 13.1
H512: COM003
H524: COM004
B526: =K526 -> 0 | C526: 32.25 | D526: m2
B527: =K527 -> 0 | C527: 3.23 | D527: m3
B528: 0 | C528: 70.95 | D528: kg
B529: 0 | C529: 3.23 | D529: m3
B530: 0 | C530: 2 | D530: un
B531: =K531 -> 0 | C531: 7.44 | D531: m2 | G531: COM003

Sheet BDI
B2: O valor do BDI é obtido pela fórmula e taxas abaixo
B4: FÓRMULA BDI
B7: BDI = | C7: (1+AC+S+R+G)(1+DF)(1+L) | D7: -1
C8: _______________________________________
C9: (1-I)
B12: ONDE:
B13: AC = Taxa de Administração Central | E13: 0.03
B14: S = Taxa de Seguros | E14: 0.004
B15: G = Taxa de Garantias | E15: 0.004
B16: R = Taxa de Riscos | E16: 0.0097
B17: DF = Taxa de Despesas Financeiras | E17: 0.0059
B18: L = Taxa de Lucro / Remuneração | E18: 0.0774
B19: I = Taxa de Incidência de Impostos | E19: =D22 -> 0.0565
C20: I1: PIS e COFINS | D20: 0.0365
C21: I2: ISSQN (conforme legislação municipal) | D21: 0.02
C22: ∑ | D22: =SUM(D20:D21) -> 0.0565
B24: TEMOS ENTÃO ENTRANDO COM OS DADOS NA FÓRMULA
C26: =TRUNC(((((1+E13+E14+E15+E16)*(1+E17)*(1+E18))/(1-E19))-1),4) -> 0.2034
F493: COM003
F505: COM004
A507: 32.25 | B507: m2
A508: 3.23 | B508: m3
A509: 70.95 | B509: kg
A510: 3.23 | B510: m3
A511: 2 | B511: un
A512: 7.44 | B512: m2 | E512: COM003

Sheet BDI (2)
B2: O valor do BDI é obtido pela fórmula e taxas abaixo
B4: FÓRMULA BDI
B7: BDI = | C7: (1+AC+S+R+G)(1+DF)(1+L) | D7: -1
C8: _______________________________________
C9: (1-I)
B12: ONDE:
B13: AC = Taxa de Administração Central | E13: 0.015
B14: S = Taxa de Seguros | E14: 0.0015
B15: G = Taxa de Garantias | E15: 0.0015
B16: R = Taxa de Riscos | E16: 0.0056
B17: DF = Taxa de Despesas Financeiras | E17: 0.0085
B18: L = Taxa de Lucro / Remuneração | E18: 0.035
B19: I = Taxa de Incidência de Impostos | E19: =D22 -> 0.0565
C20: I1: PIS e COFINS | D20: 0.0365
C21: I2: ISSQN (conforme legislação municipal) | D21: 0.02
C22: ∑ | D22: =SUM(D20:D21) -> 0.0565
B24: TEMOS ENTÃO ENTRANDO COM OS DADOS NA FÓRMULA
C26: =TRUNC(((((1+E13+E14+E15+E16)*(1+E17)*(1+E18))/(1-E19))-1),4) -> 0.1324
F482: COM003
F494: COM004
A496: 32.25 | B496: m2
A497: 3.23 | B497: m3
A498: 70.95 | B498: kg
A499: 3.23 | B499: m3
A500: 2 | B500: un
A501: 7.44 | B501: m2 | E501: COM003
